[Event "World Junior Chess Championship U20 2022"]
[White "van der Merwe, Alexander"]
[Black "Oye-Stromberg, Alexander"]
[WhiteFideId "14323842"]
[BlackFideId "1525999"]
[WhiteElo "1746"]
[BlackElo "2233"]
[Result "1/2-1/2"]
[Round "02"]
[TimeControl "5400+30"]
[Date "2022.10.13"]
[WhiteClock "0:01:47"]
[BlackClock "0:00:52"]

1. e4 {[%clk 1:30:54]}  c5 {[%clk 1:30:24]} 2. Nf3 {[%clk 1:31:18]}  d6 {[%clk 1:30:40]} 3. d4 {[%clk 1:31:39]}  cxd4 {[%clk 1:31:04]} 4. Nxd4 {[%clk 1:32:03]}  Nf6 {[%clk 1:31:14]} 5. Nc3 {[%clk 1:32:24]}  Nc6 {[%clk 1:31:06]} 6. Bc4 {[%clk 1:29:14]}  Qb6 {[%clk 1:28:07]} 7. Nb3 {[%clk 1:22:44]}  e6 {[%clk 1:27:55]} 8. Be3 {[%clk 1:22:26]}  Qc7 {[%clk 1:26:21]} 9. Nb5 {[%clk 1:16:02]}  Qb8 {[%clk 1:24:35]} 10. Nc3 {[%clk 1:14:11]}  Qc7 {[%clk 1:17:17]} 11. Nb5 {[%clk 1:14:10]}  Qb8 {[%clk 1:17:43]} 12. Nc3 {[%clk 1:09:45]}  Bd7 {[%clk 1:18:05]} 13. O-O {[%clk 1:04:32]}  Ne5 {[%clk 1:12:19]} 14. Be2 {[%clk 1:03:53]}  b5 {[%clk 1:11:43]} 15. f4 {[%clk 0:45:39]}  Nc4 {[%clk 1:09:51]} 16. Bc1 {[%clk 0:44:36]}  Qc7 {[%clk 0:59:15]} 17. Bf3 {[%clk 0:39:34]}  Rc8 {[%clk 0:58:10]} 18. a4 {[%clk 0:34:27]}  b4 {[%clk 0:54:17]} 19. Nb5 {[%clk 0:33:18]}  Qb6+ {[%clk 0:52:13]} 20. Qd4 {[%clk 0:32:23]}  Qxd4+ {[%clk 0:48:02]} 21. N5xd4 {[%clk 0:32:51]}  Be7 {[%clk 0:48:05]} 22. Re1 {[%clk 0:27:29]}  O-O {[%clk 0:42:12]} 23. Bd1 {[%clk 0:24:43]}  d5 {[%clk 0:33:34]} 24. e5 {[%clk 0:23:58]}  Ne4 {[%clk 0:33:31]} 25. Bf3 {[%clk 0:22:54]}  Nc5 {[%clk 0:32:39]} 26. a5 {[%clk 0:19:34]}  f5 {[%clk 0:24:26]} 27. g4 {[%clk 0:12:46]}  g6 {[%clk 0:24:23]} 28. Re2 {[%clk 0:12:28]}  Kh8 {[%clk 0:20:12]} 29. Kh1 {[%clk 0:12:40]}  Ne4 {[%clk 0:15:46]} 30. g5 {[%clk 0:11:31]}  Kg7 {[%clk 0:15:37]} 31. Ra2 {[%clk 0:06:16]}  Kf7 {[%clk 0:12:31]} 32. Bxe4 {[%clk 0:04:10]}  dxe4 {[%clk 0:12:49]} 33. Bd2 {[%clk 0:02:26]}  Rfd8 {[%clk 0:12:08]} 34. Be1 {[%clk 0:02:14]}  Bc6 {[%clk 0:06:26]} 35. c3 {[%clk 0:02:21]}  bxc3 {[%clk 0:05:54]} 36. Bxc3 {[%clk 0:03:00]}  Bd5 {[%clk 0:06:30]} 37. Ra1 {[%clk 0:02:49]}  h6 {[%clk 0:05:38]} 38. h4 {[%clk 0:00:53]}  hxg5 {[%clk 0:05:56]} 39. hxg5 {[%clk 0:01:04]}  Rh8+ {[%clk 0:06:09]} 40. Rh2 {[%clk 0:01:12]}  e3+ {[%clk 0:03:23]} 41. Kg1 {[%clk 0:01:38]}  Rb8 {[%clk 0:18:55]} 42. Re1 {[%clk 0:17:27]}  Rxh2 {[%clk 0:10:45]} 43. Kxh2 {[%clk 0:17:56]}  Bd8 {[%clk 0:03:09]} 44. Kg3 {[%clk 0:15:05]}  Bc7 {[%clk 0:03:11]} 45. Nc5 {[%clk 0:10:54]}  Rc8 {[%clk 0:03:18]} 46. Nb5 {[%clk 0:08:17]}  Bxa5 {[%clk 0:02:33]} 47. b4 {[%clk 0:03:49]}  a6 {[%clk 0:00:42]} 48. Nxa6 {[%clk 0:01:59]}  Bb6 {[%clk 0:01:10]} 49. Bd4 {[%clk 0:01:43]}  Bxd4 {[%clk 0:01:03]} 50. Nxd4 {[%clk 0:02:12]}  Nd2 {[%clk 0:00:43]} 51. Nc5 {[%clk 0:01:36]}  Rb8 {[%clk 0:01:11]} 52. Nc2 {[%clk 0:01:40]}  Ke7 {[%clk 0:00:41]} 53. Re2 {[%clk 0:01:47]}  Nf1+ {[%clk 0:00:52]} 1/2-1/2


[Site "http://www.chessbomb.com"]

[Event "World Junior Chess Championship U20 2022"]
[White "Winkelman, Albert"]
[Black "Vairo, Rocco Enrico"]
[WhiteFideId "3219941"]
[BlackFideId "2839437"]
[WhiteElo "2229"]
[BlackElo "1960"]
[Result "1-0"]
[Round "02"]
[TimeControl "5400+30"]
[Date "2022.10.13"]
[WhiteClock "0:14:37"]
[BlackClock "0:12:51"]

1. e4 {[%clk 1:30:56]}  c5 {[%clk 1:30:41]} 2. Nf3 {[%clk 1:31:13]}  Nc6 {[%clk 1:31:03]} 3. d4 {[%clk 1:31:33]}  cxd4 {[%clk 1:31:26]} 4. Nxd4 {[%clk 1:31:54]}  Nf6 {[%clk 1:31:45]} 5. Nc3 {[%clk 1:32:08]}  e5 {[%clk 1:31:52]} 6. Ndb5 {[%clk 1:32:22]}  d6 {[%clk 1:32:18]} 7. Bg5 {[%clk 1:32:28]}  a6 {[%clk 1:32:31]} 8. Na3 {[%clk 1:32:28]}  b5 {[%clk 1:32:47]} 9. Bxf6 {[%clk 1:33:01]}  gxf6 {[%clk 1:33:10]} 10. Nd5 {[%clk 1:33:16]}  f5 {[%clk 1:33:27]} 11. exf5 {[%clk 1:31:53]}  Bxf5 {[%clk 1:29:27]} 12. c3 {[%clk 1:31:38]}  Bg7 {[%clk 1:28:12]} 13. Nc2 {[%clk 1:31:55]}  O-O {[%clk 1:28:12]} 14. Nce3 {[%clk 1:32:08]}  Be6 {[%clk 1:26:49]} 15. Bd3 {[%clk 1:31:08]}  f5 {[%clk 1:19:30]} 16. Qh5 {[%clk 1:27:57]}  e4 {[%clk 1:17:10]} 17. Bc2 {[%clk 1:28:16]}  Ne5 {[%clk 1:06:02]} 18. Nf4 {[%clk 1:23:55]}  Bd7 {[%clk 1:02:54]} 19. Bb3+ {[%clk 1:19:04]}  Kh8 {[%clk 1:02:57]} 20. Ned5 {[%clk 1:05:30]}  a5 {[%clk 1:01:45]} 21. O-O {[%clk 1:03:03]}  a4 {[%clk 0:52:18]} 22. Bc2 {[%clk 1:02:14]}  Ra7 {[%clk 0:51:50]} 23. Rad1 {[%clk 0:58:00]}  Bf6 {[%clk 0:41:33]} 24. Qh6 {[%clk 0:46:14]}  Bc8 {[%clk 0:36:49]} 25. f3 {[%clk 0:39:18]}  Bg5 {[%clk 0:34:44]} 26. Qh5 {[%clk 0:39:15]}  exf3 {[%clk 0:34:11]} 27. gxf3 {[%clk 0:39:30]}  Rg7 {[%clk 0:33:10]} 28. Kh1 {[%clk 0:39:51]}  Rfg8 {[%clk 0:27:04]} 29. b3 {[%clk 0:09:42]}  Bxf4 {[%clk 0:15:57]} 30. Nxf4 {[%clk 0:09:59]}  Bb7 {[%clk 0:15:48]} 31. Ne6 {[%clk 0:01:07]}  Qa8 {[%clk 0:15:35]} 32. Nd4 {[%clk 0:00:55]}  Rg5 {[%clk 0:01:57]} 33. Qh3 {[%clk 0:01:19]}  Qe8 {[%clk 0:02:10]} 34. Rf2 {[%clk 0:00:41]}  Rh5 {[%clk 0:01:21]} 35. Qf1 {[%clk 0:01:06]}  Rg3 {[%clk 0:00:53]} 36. Re1 {[%clk 0:00:57]}  Qa8 {[%clk 0:00:34]} 37. Bd1 {[%clk 0:00:43]}  Rhh3 {[%clk 0:00:33]} 38. bxa4 {[%clk 0:00:39]}  bxa4 {[%clk 0:00:35]} 39. Qb5 {[%clk 0:00:48]}  Rxf3 {[%clk 0:00:33]} 40. Nxf3 {[%clk 0:00:47]}  Rxf3 {[%clk 0:00:59]} 41. Bxf3 {[%clk 0:29:55]}  Bxf3+ {[%clk 0:31:24]} 42. Kg1 {[%clk 0:29:59]}  Qg8+ {[%clk 0:30:54]} 43. Kf1 {[%clk 0:30:18]}  Bd5 {[%clk 0:28:52]} 44. Qxa4 {[%clk 0:27:13]}  Bc4+ {[%clk 0:28:58]} 45. Ree2 {[%clk 0:27:36]}  Qb8 {[%clk 0:21:40]} 46. Qd1 {[%clk 0:18:57]}  Qb7 {[%clk 0:18:58]} 47. Kg1 {[%clk 0:19:17]}  Bd5 {[%clk 0:15:09]} 48. Rb2 {[%clk 0:14:27]}  Qg7+ {[%clk 0:12:57]} 49. Rg2 {[%clk 0:14:24]}  Qa7+ {[%clk 0:12:51]} 50. Qd4 {[%clk 0:14:37]} 1-0


[Site "http://www.chessbomb.com"]

[Event "World Junior Chess Championship U20 2022"]
[White "Andreev, Konstantin"]
[Black "Liloni, Francesco Mattia"]
[WhiteFideId "24239305"]
[BlackFideId "2872264"]
[WhiteElo "2206"]
[BlackElo "1876"]
[Result "1-0"]
[Round "02"]
[TimeControl "5400+30"]
[Date "2022.10.13"]
[WhiteClock "0:47:26"]
[BlackClock "1:02:17"]

1. e4 {[%clk 1:27:50]}  e5 {[%clk 1:30:58]} 2. Nf3 {[%clk 1:28:06]}  Nc6 {[%clk 1:31:21]} 3. Bb5 {[%clk 1:28:12]}  Nge7 {[%clk 1:30:37]} 4. Nc3 {[%clk 1:27:53]}  Ng6 {[%clk 1:29:21]} 5. d4 {[%clk 1:27:37]}  exd4 {[%clk 1:27:17]} 6. Nxd4 {[%clk 1:27:51]}  Bc5 {[%clk 1:27:00]} 7. Be3 {[%clk 1:26:35]}  Bxd4 {[%clk 1:25:19]} 8. Bxd4 {[%clk 1:26:59]}  Qg5 {[%clk 1:23:51]} 9. g3 {[%clk 1:24:16]}  Nxd4 {[%clk 1:22:59]} 10. Qxd4 {[%clk 1:24:39]}  Ne5 {[%clk 1:21:43]} 11. Be2 {[%clk 1:18:43]}  Nc6 {[%clk 1:21:27]} 12. Qc4 {[%clk 1:19:04]}  O-O {[%clk 1:21:01]} 13. Nd5 {[%clk 1:18:03]}  Qe5 {[%clk 1:13:35]} 14. O-O-O {[%clk 1:16:48]}  b5 {[%clk 1:10:55]} 15. Qc5 {[%clk 1:10:00]}  Bb7 {[%clk 1:08:48]} 16. f4 {[%clk 1:05:08]}  Qxe4 {[%clk 1:08:33]} 17. Bd3 {[%clk 1:05:07]}  Qa4 {[%clk 1:07:20]} 18. Nf6+ {[%clk 1:04:42]}  Kh8 {[%clk 1:06:47]} 19. Nxh7 {[%clk 0:53:55]}  Nb4 {[%clk 1:02:36]} 20. Qh5 {[%clk 0:51:08]}  Nxd3+ {[%clk 1:01:17]} 21. cxd3 {[%clk 0:51:15]}  Bf3 {[%clk 1:00:07]} 22. Qh4 {[%clk 0:51:03]}  Kg8 {[%clk 0:59:41]} 23. Ng5 {[%clk 0:51:12]}  Rfe8 {[%clk 0:59:57]} 24. Qh7+ {[%clk 0:50:36]}  Kf8 {[%clk 1:00:21]} 25. Rde1 {[%clk 0:47:20]}  Re2 {[%clk 0:59:34]} 26. Rxe2 {[%clk 0:47:44]}  Bxe2 {[%clk 0:59:58]} 27. Qh8+ {[%clk 0:47:01]}  Ke7 {[%clk 1:00:22]} 28. Qxa8 {[%clk 0:47:24]}  Bxd3 {[%clk 1:00:26]} 29. Re1+ {[%clk 0:47:24]}  Kf6 {[%clk 1:00:46]} 30. Qg2 {[%clk 0:45:34]}  Qc4+ {[%clk 1:00:39]} 31. Kd1 {[%clk 0:45:57]}  Qxa2 {[%clk 1:00:49]} 32. Ne4+ {[%clk 0:45:27]}  Kg6 {[%clk 1:01:08]} 33. f5+ {[%clk 0:45:45]}  Kh7 {[%clk 1:01:13]} 34. Qh3+ {[%clk 0:46:09]}  Kg8 {[%clk 1:01:29]} 35. Nf6+ {[%clk 0:46:33]}  gxf6 {[%clk 1:01:55]} 36. Re8+ {[%clk 0:47:01]}  Kg7 {[%clk 1:02:17]} 37. Qh8# {[%clk 0:47:26]} 1-0


[Site "http://www.chessbomb.com"]

[Event "World Junior Chess Championship U20 2022"]
[White "Vivoli, Alessandro"]
[Black "Asllani, Dorian"]
[WhiteFideId "11800240"]
[BlackFideId "1341332"]
[WhiteElo "1555"]
[BlackElo "2202"]
[Result "0-1"]
[Round "02"]
[TimeControl "5400+30"]
[Date "2022.10.13"]
[WhiteClock "0:15:41"]
[BlackClock "1:14:04"]

1. e4 {[%clk 1:30:57]}  c5 {[%clk 1:30:54]} 2. Nf3 {[%clk 1:31:19]}  Nc6 {[%clk 1:31:18]} 3. d4 {[%clk 1:31:42]}  cxd4 {[%clk 1:31:43]} 4. Nxd4 {[%clk 1:32:04]}  g6 {[%clk 1:32:09]} 5. Nc3 {[%clk 1:32:11]}  Bg7 {[%clk 1:31:57]} 6. Be3 {[%clk 1:32:31]}  Nf6 {[%clk 1:32:14]} 7. Bc4 {[%clk 1:32:18]}  O-O {[%clk 1:32:38]} 8. Bb3 {[%clk 1:32:32]}  a5 {[%clk 1:33:01]} 9. O-O {[%clk 1:31:45]}  a4 {[%clk 1:33:18]} 10. Nxa4 {[%clk 1:30:22]}  Nxe4 {[%clk 1:33:40]} 11. Nb5 {[%clk 1:23:57]}  d5 {[%clk 1:34:00]} 12. Nb6 {[%clk 1:16:09]}  Ra5 {[%clk 1:34:11]} 13. Nxc8 {[%clk 1:14:48]}  Rxb5 {[%clk 1:33:31]} 14. a4 {[%clk 1:13:23]}  Rxb3 {[%clk 1:32:09]} 15. cxb3 {[%clk 1:13:30]}  d4 {[%clk 1:29:58]} 16. Nxe7+ {[%clk 1:12:17]}  Qxe7 {[%clk 1:28:23]} 17. Bf4 {[%clk 1:08:04]}  Qf6 {[%clk 1:25:04]} 18. Qf3 {[%clk 1:02:21]}  Nc5 {[%clk 1:24:58]} 19. Qg3 {[%clk 0:43:52]}  d3 {[%clk 1:17:58]} 20. Rac1 {[%clk 0:31:59]}  Nd4 {[%clk 1:16:01]} 21. Rfe1 {[%clk 0:20:19]}  Ne2+ {[%clk 1:13:49]} 22. Rxe2 {[%clk 0:20:43]}  dxe2 {[%clk 1:14:15]} 23. Qe3 {[%clk 0:19:39]}  Nxb3 {[%clk 1:13:45]} 24. Rc2 {[%clk 0:15:41]}  Qxf4 {[%clk 1:14:04]} 0-1


[Site "http://www.chessbomb.com"]

[Event "World Junior Chess Championship U20 2022"]
[White "Casadio, Niccolo`"]
[Black "Porcu, Riccardo"]
[WhiteFideId "2827951"]
[BlackFideId "28536690"]
[WhiteElo "2201"]
[BlackElo "1759"]
[Result "1-0"]
[Round "02"]
[TimeControl "5400+30"]
[Date "2022.10.13"]
[WhiteClock "1:13:09"]
[BlackClock "0:42:22"]

1. d4 {[%clk 1:30:57]}  Nf6 {[%clk 1:30:35]} 2. Bf4 {[%clk 1:31:21]}  e6 {[%clk 1:29:34]} 3. e3 {[%clk 1:31:42]}  c5 {[%clk 1:29:42]} 4. Nf3 {[%clk 1:31:17]}  Nc6 {[%clk 1:28:06]} 5. c3 {[%clk 1:31:32]}  d5 {[%clk 1:26:04]} 6. Nbd2 {[%clk 1:31:41]}  Bd6 {[%clk 1:25:01]} 7. Bg3 {[%clk 1:32:00]}  O-O {[%clk 1:24:58]} 8. Bd3 {[%clk 1:32:21]}  b6 {[%clk 1:22:40]} 9. e4 {[%clk 1:31:33]}  dxe4 {[%clk 1:21:17]} 10. Nxe4 {[%clk 1:31:47]}  Nxe4 {[%clk 1:21:29]} 11. Bxe4 {[%clk 1:32:12]}  Bb7 {[%clk 1:19:52]} 12. dxc5 {[%clk 1:32:36]}  Bxc5 {[%clk 1:19:17]} 13. Qa4 {[%clk 1:33:00]}  Qc8 {[%clk 1:01:38]} 14. Rd1 {[%clk 1:15:57]}  Nd8 {[%clk 0:52:31]} 15. Bxh7+ {[%clk 1:12:05]}  Kxh7 {[%clk 0:52:45]} 16. Qh4+ {[%clk 1:12:27]}  Kg8 {[%clk 0:50:02]} 17. Ng5 {[%clk 1:12:52]}  Re8 {[%clk 0:48:48]} 18. Qh7+ {[%clk 1:12:56]}  Kf8 {[%clk 0:49:07]} 19. Bh4 {[%clk 1:12:31]}  f6 {[%clk 0:42:18]} 20. Qh8+ {[%clk 1:12:43]}  Ke7 {[%clk 0:42:22]} 21. Qxg7+ {[%clk 1:13:09]} 1-0


[Site "http://www.chessbomb.com"]

[Event "World Junior Chess Championship U20 2022"]
[White "Brahami, Lamine"]
[Black "Monferrato, Rocco"]
[WhiteFideId "7905637"]
[BlackFideId "3016536"]
[WhiteElo "2188"]
[BlackElo "1563"]
[Result "1-0"]
[Round "02"]
[TimeControl "5400+30"]
[Date "2022.10.13"]
[WhiteClock "0:17:49"]
[BlackClock "0:09:37"]

1. d4 {[%clk 1:30:51]}  Nf6 {[%clk 1:30:54]} 2. Nf3 {[%clk 1:31:03]}  e6 {[%clk 1:31:10]} 3. c4 {[%clk 1:31:13]}  b6 {[%clk 1:31:34]} 4. a3 {[%clk 1:29:45]}  Bb7 {[%clk 1:31:03]} 5. Nc3 {[%clk 1:29:04]}  d5 {[%clk 1:28:43]} 6. cxd5 {[%clk 1:27:12]}  Nxd5 {[%clk 1:28:50]} 7. e3 {[%clk 1:26:46]}  c5 {[%clk 1:24:40]} 8. Bb5+ {[%clk 1:24:47]}  Nc6 {[%clk 1:22:34]} 9. Qa4 {[%clk 1:19:44]}  Ne7 {[%clk 1:19:15]} 10. dxc5 {[%clk 1:14:00]}  a6 {[%clk 1:13:24]} 11. Be2 {[%clk 1:10:05]}  bxc5 {[%clk 1:07:56]} 12. O-O {[%clk 1:08:56]}  Ng6 {[%clk 0:59:59]} 13. Rd1 {[%clk 1:04:33]}  Qc7 {[%clk 0:59:12]} 14. Ne4 {[%clk 1:00:12]}  Be7 {[%clk 0:56:16]} 15. Bd2 {[%clk 0:59:42]}  O-O {[%clk 0:55:26]} 16. Rac1 {[%clk 0:56:12]}  Qb6 {[%clk 0:51:21]} 17. Rc2 {[%clk 0:49:53]}  Nce5 {[%clk 0:43:51]} 18. Nxe5 {[%clk 0:44:18]}  Nxe5 {[%clk 0:43:36]} 19. Ng3 {[%clk 0:44:15]}  Bc6 {[%clk 0:40:38]} 20. Qf4 {[%clk 0:39:35]}  Bf6 {[%clk 0:37:47]} 21. Nh5 {[%clk 0:34:59]}  Nd7 {[%clk 0:35:26]} 22. Bc3 {[%clk 0:27:48]}  Bxc3 {[%clk 0:32:08]} 23. bxc3 {[%clk 0:27:57]}  Qa5 {[%clk 0:29:14]} 24. Qg5 {[%clk 0:25:06]}  g6 {[%clk 0:27:27]} 25. Rxd7 {[%clk 0:24:26]}  Bxd7 {[%clk 0:27:23]} 26. Nf6+ {[%clk 0:24:55]}  Kg7 {[%clk 0:26:14]} 27. Nxd7 {[%clk 0:22:21]}  Qa4 {[%clk 0:24:47]} 28. Qf6+ {[%clk 0:20:58]}  Kg8 {[%clk 0:25:04]} 29. Rd2 {[%clk 0:21:15]}  Rad8 {[%clk 0:13:49]} 30. Qe7 {[%clk 0:19:41]}  Rfe8 {[%clk 0:13:02]} 31. Nf6+ {[%clk 0:19:49]}  Kg7 {[%clk 0:12:33]} 32. Nxe8+ {[%clk 0:19:12]}  Rxe8 {[%clk 0:12:27]} 33. Qxc5 {[%clk 0:19:34]}  Qb3 {[%clk 0:10:27]} 34. Qd4+ {[%clk 0:18:24]}  Kg8 {[%clk 0:10:37]} 35. Qb4 {[%clk 0:18:33]}  Rb8 {[%clk 0:10:26]} 36. Rd8+ {[%clk 0:18:40]}  Kg7 {[%clk 0:09:28]} 37. Rxb8 {[%clk 0:17:50]}  Qc2 {[%clk 0:09:37]} 38. Qd4+ {[%clk 0:17:49]} 1-0


[Site "http://www.chessbomb.com"]

[Event "World Junior Chess Championship U20 2022"]
[White "Ghaith, Saeed Alnuaimi"]
[Black "Stankovic, Dragan"]
[WhiteFideId "9309152"]
[BlackFideId "14408740"]
[WhiteElo "1269"]
[BlackElo "2181"]
[Result "0-1"]
[Round "02"]
[TimeControl "5400+30"]
[Date "2022.10.13"]
[WhiteClock "0:00:33"]
[BlackClock "0:02:35"]

1. d4 {[%clk 1:30:36]}  d5 {[%clk 1:30:51]} 2. c4 {[%clk 1:31:03]}  e6 {[%clk 1:31:10]} 3. Nf3 {[%clk 1:31:28]}  Nf6 {[%clk 1:31:13]} 4. g3 {[%clk 1:31:51]}  Bb4+ {[%clk 1:29:27]} 5. Bd2 {[%clk 1:32:15]}  Bxd2+ {[%clk 1:29:27]} 6. Nbxd2 {[%clk 1:32:39]}  O-O {[%clk 1:29:30]} 7. Bg2 {[%clk 1:33:06]}  b6 {[%clk 1:29:06]} 8. cxd5 {[%clk 1:33:29]}  Nxd5 {[%clk 1:27:12]} 9. e4 {[%clk 1:33:49]}  Nf6 {[%clk 1:26:14]} 10. O-O {[%clk 1:34:11]}  Bb7 {[%clk 1:25:50]} 11. Qc2 {[%clk 1:33:51]}  Nbd7 {[%clk 1:23:46]} 12. Rfe1 {[%clk 1:28:43]}  Rc8 {[%clk 1:18:42]} 13. Nc4 {[%clk 1:28:38]}  Qe7 {[%clk 1:12:24]} 14. Rad1 {[%clk 1:28:48]}  Rfd8 {[%clk 1:10:25]} 15. a3 {[%clk 1:28:06]}  Ne8 {[%clk 1:04:15]} 16. d5 {[%clk 1:17:13]}  e5 {[%clk 1:02:56]} 17. Qc3 {[%clk 1:15:40]}  f6 {[%clk 1:00:17]} 18. Nh4 {[%clk 1:15:59]}  Nd6 {[%clk 0:58:22]} 19. Bh3 {[%clk 1:03:45]}  g6 {[%clk 0:52:52]} 20. f4 {[%clk 0:57:47]}  Ba6 {[%clk 0:44:37]} 21. Nd2 {[%clk 0:38:48]}  Nb5 {[%clk 0:34:14]} 22. Qc4 {[%clk 0:34:43]}  Qc5+ {[%clk 0:18:02]} 23. Qxc5 {[%clk 0:35:11]}  bxc5 {[%clk 0:14:26]} 24. Nb3 {[%clk 0:35:04]}  Nd4 {[%clk 0:12:34]} 25. Bxd7 {[%clk 0:35:05]}  Rxd7 {[%clk 0:11:37]} 26. Nxc5 {[%clk 0:35:28]}  Rd6 {[%clk 0:12:04]} 27. Nxa6 {[%clk 0:34:00]}  Rxa6 {[%clk 0:12:32]} 28. Kf2 {[%clk 0:25:25]}  Rb8 {[%clk 0:12:28]} 29. Rd2 {[%clk 0:25:07]}  Rb3 {[%clk 0:05:02]} 30. Re3 {[%clk 0:23:09]}  Rab6 {[%clk 0:05:09]} 31. Rxb3 {[%clk 0:23:25]}  Rxb3 {[%clk 0:05:26]} 32. h3 {[%clk 0:22:56]}  Kf8 {[%clk 0:05:25]} 33. fxe5 {[%clk 0:21:04]}  fxe5 {[%clk 0:05:46]} 34. Kg2 {[%clk 0:19:48]}  Re3 {[%clk 0:04:17]} 35. Rf2+ {[%clk 0:20:04]}  Ke7 {[%clk 0:04:39]} 36. Nf3 {[%clk 0:19:26]}  Nxf3 {[%clk 0:04:53]} 37. Rxf3 {[%clk 0:19:34]}  Rxe4 {[%clk 0:05:06]} 38. Rc3 {[%clk 0:16:13]}  Kd7 {[%clk 0:04:57]} 39. Kf3 {[%clk 0:06:52]}  Rd4 {[%clk 0:04:50]} 40. Rc5 {[%clk 0:04:27]}  h5 {[%clk 0:03:44]} 41. Ra5 {[%clk 0:30:30]}  Kd6 {[%clk 0:32:22]} 42. Rxa7 {[%clk 0:26:17]}  Rxd5 {[%clk 0:21:26]} 43. Ra6+ {[%clk 0:25:50]}  c6 {[%clk 0:21:37]} 44. Ke2 {[%clk 0:19:53]}  Rc5 {[%clk 0:13:59]} 45. Kd2 {[%clk 0:19:10]}  Kd5 {[%clk 0:12:26]} 46. Ra4 {[%clk 0:16:31]}  g5 {[%clk 0:08:40]} 47. Rb4 {[%clk 0:11:47]}  Ra5 {[%clk 0:07:39]} 48. Kd3 {[%clk 0:11:19]}  Ra8 {[%clk 0:07:39]} 49. Rb7 {[%clk 0:10:41]}  Rf8 {[%clk 0:06:32]} 50. Ke2 {[%clk 0:08:10]}  h4 {[%clk 0:04:46]} 51. g4 {[%clk 0:05:44]}  Ke4 {[%clk 0:02:58]} 52. Rb4+ {[%clk 0:06:07]}  Kd5 {[%clk 0:03:19]} 53. Rb7 {[%clk 0:06:19]}  c5 {[%clk 0:02:41]} 54. b3 {[%clk 0:04:35]}  Ke4 {[%clk 0:02:33]} 55. a4 {[%clk 0:00:53]}  Rf3 {[%clk 0:02:06]} 56. a5 {[%clk 0:00:37]}  Rxh3 {[%clk 0:02:24]} 57. a6 {[%clk 0:00:32]}  Rh2+ {[%clk 0:02:24]} 58. Kf1 {[%clk 0:00:41]}  Ra2 {[%clk 0:02:56]} 59. a7 {[%clk 0:00:32]}  Kf3 {[%clk 0:03:00]} 60. Rf7+ {[%clk 0:00:31]}  Kxg4 {[%clk 0:02:58]} 61. Re7 {[%clk 0:00:33]}  Kf4 {[%clk 0:02:28]} 62. Rf7+ {[%clk 0:00:33]}  Kg3 {[%clk 0:02:35]} 0-1


[Site "http://www.chessbomb.com"]

[Event "World Junior Chess Championship U20 2022"]
[White "Hercegovac, Neven"]
[Black "Abdulla, Younes Alkhemeiri"]
[WhiteFideId "2839135"]
[BlackFideId "9324577"]
[WhiteElo "2175"]
[BlackElo "1405"]
[Result "1-0"]
[Round "02"]
[TimeControl "5400+30"]
[Date "2022.10.13"]
[WhiteClock "0:09:40"]
[BlackClock "0:40:20"]

1. e4 {[%clk 1:30:58]}  c5 {[%clk 1:30:42]} 2. Nc3 {[%clk 1:31:22]}  d6 {[%clk 1:30:32]} 3. Nge2 {[%clk 1:31:34]}  Nf6 {[%clk 1:30:20]} 4. d4 {[%clk 1:31:51]}  cxd4 {[%clk 1:30:18]} 5. Nxd4 {[%clk 1:32:13]}  e6 {[%clk 1:30:23]} 6. g3 {[%clk 1:32:32]}  Be7 {[%clk 1:29:41]} 7. Bg2 {[%clk 1:32:56]}  Nc6 {[%clk 1:28:44]} 8. O-O {[%clk 1:31:45]}  O-O {[%clk 1:28:27]} 9. Be3 {[%clk 1:25:42]}  Bd7 {[%clk 1:24:31]} 10. Nxc6 {[%clk 1:23:19]}  Bxc6 {[%clk 1:24:41]} 11. a4 {[%clk 1:23:08]}  a5 {[%clk 1:19:29]} 12. f4 {[%clk 1:19:58]}  Nd7 {[%clk 1:12:26]} 13. Qd2 {[%clk 1:02:15]}  f5 {[%clk 1:10:29]} 14. Rfe1 {[%clk 0:58:25]}  Nf6 {[%clk 1:06:40]} 15. exf5 {[%clk 0:56:51]}  Bxg2 {[%clk 1:06:13]} 16. Qxg2 {[%clk 0:55:51]}  exf5 {[%clk 1:05:50]} 17. Qxb7 {[%clk 0:50:06]}  Rb8 {[%clk 1:04:31]} 18. Qa7 {[%clk 0:45:46]}  Rxb2 {[%clk 1:02:39]} 19. Bd4 {[%clk 0:45:39]}  Rf7 {[%clk 1:00:20]} 20. Nd5 {[%clk 0:42:19]}  Bf8 {[%clk 1:00:21]} 21. Ne7+ {[%clk 0:41:33]}  Bxe7 {[%clk 0:59:16]} 22. Bxb2 {[%clk 0:41:49]}  Ne4 {[%clk 0:58:59]} 23. Rad1 {[%clk 0:35:43]}  d5 {[%clk 0:56:54]} 24. Bd4 {[%clk 0:34:37]}  Bb4 {[%clk 0:56:25]} 25. Qa6 {[%clk 0:33:37]}  Bxe1 {[%clk 0:56:14]} 26. Rxe1 {[%clk 0:34:06]}  Re7 {[%clk 0:49:26]} 27. Kg2 {[%clk 0:29:21]}  Nc5 {[%clk 0:48:28]} 28. Qf1 {[%clk 0:27:48]}  Nxa4 {[%clk 0:44:55]} 29. Rxe7 {[%clk 0:19:20]}  Qxe7 {[%clk 0:45:16]} 30. Qb5 {[%clk 0:18:27]}  Qe4+ {[%clk 0:40:44]} 31. Kh3 {[%clk 0:15:38]}  h6 {[%clk 0:40:22]} 32. Qb8+ {[%clk 0:09:27]}  Kh7 {[%clk 0:40:20]} 33. Qa7 {[%clk 0:09:40]} 1-0


[Site "http://www.chessbomb.com"]